[Event "Serbian League 2024"]
[Site "Bajina Basta"]
[Date "2024.10.01"]
[Round "5.8"]
[White "Markus, Robert"]
[Black "Yilmaz, Baver"]
[Result "1-0"]
[Annotator "TA"]
[ECO "A23"]
[WhiteElo "2586"]
[BlackElo "2202"]
[PlyCount "87"]
[EventDate "2024.09.26"]
[EventType "team-tourn"]
[EventCountry "SRB"]
[SourceTitle "playchess.com"]
[Source "ChessBase"]
[SourceQuality "1"]
[TimeControl "40/5400+30:1800+30"]

{[%evp 20,87,31,17,20,8,22,20,66,65,77,60,71,71,83,83,84,75,59,64,71,73,64,33,131,129,107,109,119,122,129,121,148,127,135,152,149,141,186,181,169,183,260,210,205,203,340,260,262,264,366,266,358,357,653,647,672,664,797,737,1054,1051,1026,1017,919,910,1622,1622,2100,1916]} 1. c4 {[%emt 0:00:04]} e5 {[%emt 0:03:36]} 2. Nc3 {[%emt 0:00:40]} Nf6 {[%emt 0:00:09]} 3. g3 {[%emt 0:00:46]} c6 {[%emt 0:00:54]} 4. Nf3 {[%emt 0:00:33]} e4 {[%emt 0:01:02]} 5. Nd4 {[%emt 0:00:12]} d5 {[%emt 0:01:04]} 6. cxd5 {[%emt 0:02:14]} cxd5 {[%emt 0:00:18]} 7. Bg2 {[%emt 0:01:11]} Nc6 {[%emt 0:02:21]} 8. Nxc6 {[%emt 0:01:45]} bxc6 {[%emt 0:00:10]} 9. d3 {[%emt 0:01:15]} exd3 {[%emt 0:01:50]} 10. Qxd3 {[%emt 0:00:22]} Be7 {[%emt 0:03:39]} 11. O-O {[%emt 0:05:30]} O-O {[%emt 0:00:36]} 12. Bf4 {[%emt 0:07:58]} a5 {[%emt 0:02:16]} 13. Rfd1 {[%emt 0:02:23]} Ba6 {[%emt 0:04:55]} (13... a4 $11) 14. Qc2 $14 {[%emt 0:06:34] White is more active.} Qb6 {[%emt 0:01:49]} 15. Be3 {[%emt 0:01:49]} Qb7 {[%emt 0:02:35]} 16. Bd4 {[%emt 0:04:11]} Rfe8 {[%emt 0:02:17]} 17. e4 {[%emt 0:06:55]} dxe4 {[%emt 0:05:56]} 18. Nxe4 {[%emt 0:00:22]} Nd5 {[%emt 0:01:42]} 19. a3 {[%emt 0:05:54]} h6 {[%emt 0:02:26]} 20. Rac1 {[%emt 0:01:02]} Bb5 {[%emt 0:03:17]} 21. Bc5 {[%emt 0:06:19]} Rac8 {[%emt 0:10:38] Black is on the road to losing.} (21... a4 $14) 22. a4 $16 {[%emt 0:04:51]} Ba6 {[%emt 0:01:13] [#]} 23. Bxe7 $1 {[%emt 0:00:18]} Qxe7 {[%emt 0:01:17]} 24. Qc5 {[%emt 0:00:10] Black must now prevent Nd6.} Qxc5 {[%emt 0:08:53]} 25. Rxc5 {[%emt 0:00:53]} Red8 {[%emt 0:01:40][%cal Od5f4] Repels Nd6} 26. Rxa5 {[%emt 0:01:52]} Nb4 {[%emt 0:04:14]} 27. Rxd8+ {[%emt 0:08:16]} Rxd8 {[%emt 0:00:06]} 28. h4 {[%emt 0:00:05]} Bc4 {[%emt 0:07:15]} 29. Ra7 {[%emt 0:03:33]} Rd1+ {[%emt 0:02:45]} 30. Kh2 {[%emt 0:00:05]} Bd5 {[%emt 0:03:00]} (30... g6 $142 31. Rd7 Rc1 (31... Rxd7 $2 32. Nf6+ Kg7 33. Nxd7 $18)) 31. a5 {[%emt 0:02:16] And now Nc3 would win.} Ra1 {[%emt 0:02:11]} 32. Nd6 {[%emt 0:02:46]} Nd3 {[%emt 0:03:12]} (32... Be6 {was necessary.} 33. Ra8+ Kh7) 33. Bxd5 {[%emt 0:08:11]} cxd5 $18 {[%emt 0:00:20][%mdl 4096] Endgame. KRN-KRN} 34. a6 {[%emt 0:00:08]} (34. Nxf7 $6 Nxb2 35. Nd8 Nd3 $16) 34... Nxf2 {[%emt 0:11:17]} 35. Ra8+ {[%emt 0:01:51]} (35. Rxf7 Ng4+ 36. Kg2 (36. Kh3 Ne3 $11) 36... Rxa6 $11) (35. Nxf7 d4 $14) 35... Kh7 {[%emt 0:00:06]} 36. a7 {[%emt 0:00:06]} (36. Nxf7 d4 37. h5 g5 $16) 36... d4 $2 {[%emt 0:01:18]} (36... Ng4+ 37. Kg2 Ra5) 37. Nb5 {[%emt 0:02:13] White is clearly winning.} ({Not} 37. Nxf7 d3 38. Rh8+ Kg6 39. Ne5+ (39. a8=B $2 {perishes.} d2 $19) (39. a8=Q Rxa8 40. Rxa8 d2 $16) 39... Kf5 40. Nxd3 (40. a8=B $2 d2 $19) (40. a8=Q Rxa8 41. Rxa8 d2 $16) 40... Ng4+ 41. Kg2 Rxa7 $16) 37... Ng4+ {[%emt 0:04:21]} 38. Kh3 {[%emt 0:04:24]} f5 {[%emt 0:01:49]} 39. Re8 {[%emt 0:01:07][%cal Ob5a3] [#] Strongly threatening Na3!} Ne3 {[%emt 0:01:01]} 40. a8=Q {[%emt 0:00:41]} Rxa8 {[%emt 0:00:15]} 41. Rxa8 {[%emt 0:30:30]} d3 {[%emt 0:30:30]} 42. Rd8 {[%emt 0:00:30]} Nd1 {[%emt 0:00:00]} 43. b4 {[%emt 0:00:21]} ({Less strong is} 43. Rxd3 Nf2+ 44. Kg2 Nxd3 $16) 43... Nb2 {[%emt 0:00:00]} 44. Nc3 {[%emt 0:00:20] Weighted Error Value: White=0.07 (flawless) /Black=0.43.  Mistake:       	---       	Black=5      Inaccurate:     	White=1     	Black=3      OK:         	White=9     	Black=8      Best:        	White=4     	---        Strong:       	White=1     	---} 1-0

[Event "Serbian League 2024"]
[Site "Bajina Basta"]
[Date "2024.10.01"]
[Round "5.9"]
[White "Szalai, Kornel"]
[Black "Perunovic, Milos"]
[Result "0-1"]
[Annotator "RC"]
[ECO "D32"]
[WhiteElo "2388"]
[BlackElo "2525"]
[PlyCount "58"]
[EventDate "2024.09.26"]
[EventType "team-tourn"]
[EventCountry "SRB"]
[SourceTitle "playchess.com"]
[Source "ChessBase"]
[SourceQuality "1"]
[TimeControl "40/5400+30:1800+30"]

1. Nf3 {[%emt 0:02:54]} Nf6 {[%emt 0:00:56]} 2. c4 {[%emt 0:01:32]} e6 {[%emt 0:01:24]} 3. e3 {[%emt 0:04:28]} d5 {[%emt 0:01:32]} 4. Nc3 {[%emt 0:01:19]} c5 {[%emt 0:04:40]} 5. cxd5 {[%emt 0:03:57]} exd5 {[%emt 0:00:39]} 6. d4 {[%emt 0:00:14]} a6 {[%emt 0:01:29]} 7. Be2 {[%emt 0:01:49]} Nc6 {[%emt 0:01:11]} 8. O-O {[%emt 0:00:32]} Bd6 {[%emt 0:01:23]} 9. b3 {[%emt 0:01:14]} O-O {[%emt 0:13:09]} 10. dxc5 {[%emt 0:10:48]} Bxc5 {[%emt 0:00:23]} 11. Bb2 {[%emt 0:00:13]} Ba7 {[%emt 0:04:44]} 12. Qd3 {[%emt 0:04:16]} Be6 {[%emt 0:11:55]} 13. Rfd1 {[%emt 0:10:22]} Qe7 {[%emt 0:03:38]} 14. Rac1 {[%emt 0:15:29]} Rad8 {[%emt 0:05:09]} 15. Na4 {[%emt 0:08:40]} Ne4 {[%emt 0:04:51]} 16. Nd4 {[%emt 0:13:15]} Ne5 {[%emt 0:05:26]} 17. Qb1 {[%emt 0:01:20]} Qh4 {[%emt 0:08:22]} 18. g3 {[%emt 0:02:32]} Qh6 {[%emt 0:04:30]} 19. Nc3 {[%emt 0:10:59]} Nxf2 {[%emt 0:03:44]} 20. Kxf2 {[%emt 0:00:05]} Qxh2+ {[%emt 0:00:43]} 21. Ke1 {[%emt 0:00:03]} Qxg3+ {[%emt 0:00:44]} 22. Kd2 {[%emt 0:00:09]} Bxd4 {[%emt 0:00:24]} 23. exd4 {[%emt 0:00:28]} Qf4+ {[%emt 0:00:25]} 24. Ke1 {[%emt 0:00:12]} Qh4+ {[%emt 0:01:15]} 25. Kd2 {[%emt 0:00:44]} Qxd4+ {[%emt 0:03:00]} 26. Ke1 {[%emt 0:00:03]} Qh4+ {[%emt 0:01:01]} 27. Kd2 {[%emt 0:00:03]} Qf4+ {[%emt 0:00:56]} 28. Ke1 {[%emt 0:00:04]} Bf5 {[%emt 0:00:49]} 29. Qa1 {[%emt 0:04:32]} Qe3 {[%emt 0:02:37]} 0-1

[Event "Serbian League 2024"]
[Site "Bajina Basta"]
[Date "2024.10.01"]
[Round "5.10"]
[White "Ivanisevic, Ivan"]
[Black "Farkas, Tibor"]
[Result "1-0"]
[Annotator "TA"]
[ECO "E70"]
[WhiteElo "2519"]
[BlackElo "2209"]
[PlyCount "59"]
[EventDate "2024.09.26"]
[EventType "team-tourn"]
[EventCountry "SRB"]
[SourceTitle "playchess.com"]
[Source "ChessBase"]
[SourceQuality "1"]
[TimeControl "40/5400+30:1800+30"]

{[%evp 11,58,32,31,31,38,41,26,33,36,31,39,12,60,55,49,50,49,50,55,63,50,51,55,56,68,58,63,59,53,16,58,28,376,371,523,524,505,598,597,546,1024,1005,1052,1025,1016,958,29998,29999,29999]} 1. d4 {[%emt 0:01:34]} Nf6 {[%emt 0:02:27]} 2. c4 {[%emt 0:00:06]} g6 {[%emt 0:00:56]} 3. Nc3 {[%emt 0:00:07]} Bg7 {[%emt 0:00:46]} 4. e4 {[%emt 0:00:06]} d6 {[%emt 0:00:17]} 5. Bd3 {[%emt 0:00:08]} O-O {[%emt 0:00:17]} 6. Nge2 {[%emt 0:00:04]} Nc6 {[%emt 0:07:04]} 7. Bg5 {[%emt 0:00:51]} h6 {[%emt 0:02:40]} 8. Bd2 {[%emt 0:00:09]} e5 {[%emt 0:04:22]} 9. d5 {[%emt 0:00:09] Weiß hat minimalen Vorteil.} Nd4 {[%emt 0:00:28]} 10. O-O {[%emt 0:01:09]} Nd7 {[%emt 0:10:27]} 11. Bb1 {[%emt 0:06:08]} Nxe2+ {[%emt 0:09:27]} (11... c5 $11) 12. Qxe2 $14 {[%emt 0:03:25]} a5 {[%emt 0:00:33]} 13. Bc2 {[%emt 0:06:59]} Nc5 {[%emt 0:04:10]} 14. Be3 {[%emt 0:02:23]} f5 {[%emt 0:04:39]} 15. exf5 {[%emt 0:02:18]} gxf5 {[%emt 0:09:25]} 16. f3 {[%emt 0:00:08]} Bd7 {[%emt 0:01:06]} 17. Kh1 {[%emt 0:00:33]} Qh4 {[%emt 0:01:48]} 18. g3 {[%emt 0:01:44]} Qh3 {[%emt 0:02:56]} 19. Rae1 {[%emt 0:05:51]} b6 {[%emt 0:03:33]} 20. Rg1 {[%emt 0:06:46]} Rf7 {[%emt 0:04:56][%cal Oe5e4]} 21. g4 {[%emt 0:11:58]} (21. Ref1 {vereinfacht} Raf8 22. Nb5 Bc8 23. a3) 21... e4 $2 {[%emt 0:05:51][%mdl 8192] [#] Das Aus für Schwarz.} 22. Rg3 $1 $18 {[%emt 0:02:44]} exf3 {[%emt 0:01:16]} (22... Qh4 {ist eine bessere Verteidigung.}) 23. Qf2 {[%emt 0:00:12]} Qh4 {[%emt 0:01:35] Droht stark ...f4.} 24. gxf5 {[%emt 0:00:09][%cal Og3g7] Und jetzt Rxg7+! wäre schön.} (24. Qxf3 $2 fxg4 25. Qd1 Be5 $19) 24... Kh8 {[%emt 0:02:28]} 25. Reg1 {[%emt 0:03:01]} ({Schwächer ist} 25. Rxf3 Qxf2 26. Rxf2 (26. Bxf2 Raf8 $16) 26... Bf6 $16) (25. Qxf3 Be5 $16) 25... Raf8 {[%emt 0:04:26]} 26. Qxf3 {[%emt 0:06:03]} ({Schlechter ist} 26. Rxf3 Qxf2 27. Rxf2 Bxf5 $11) 26... Bxf5 {[%emt 0:07:15]} 27. Bxf5 {[%emt 0:01:47]} Rxf5 {[%emt 0:00:21]} 28. Qg2 {[%emt 0:00:11]} Bxc3 {[%emt 0:05:02]} 29. Rg8+ {[%emt 0:00:18]} Kh7 {[%emt 0:00:16]} 30. Qg6# {[%emt 0:00:05] Gewichteter Fehlerwert: Weiß=0.05 (makellos) /Schwarz=0.69.  Verlustzug:     	---       	Schwarz=1     Fehler:       	---       	Schwarz=2     Ungenau:       	Weiß=3     	Schwarz=2     OK:         	Weiß=8     	Schwarz=10    Bester:       	Weiß=2     	---        Stark:        	Weiß=1     	---} 1-0

[Event "Serbian League 2024"]
[Site "Bajina Basta"]
[Date "2024.10.01"]
[Round "5.11"]
[White "Juhasz, Bence R"]
[Black "Lazic, Miroljub"]
[Result "1-0"]
[Annotator "RC"]
[ECO "C75"]
[WhiteElo "2266"]
[BlackElo "2314"]
[PlyCount "97"]
[EventDate "2024.09.26"]
[EventType "team-tourn"]
[EventCountry "SRB"]
[SourceTitle "playchess.com"]
[Source "ChessBase"]
[SourceQuality "1"]
[TimeControl "40/5400+30:1800+30"]

1. e4 {[%emt 0:05:13]} e5 {[%emt 0:00:08]} 2. Nf3 {[%emt 0:00:21]} Nc6 {[%emt 0:00:11]} 3. Bb5 {[%emt 0:01:17]} Nge7 {[%emt 0:00:34]} 4. c3 {[%emt 0:04:57]} a6 {[%emt 0:00:08]} 5. Ba4 {[%emt 0:00:09]} d6 {[%emt 0:00:07]} 6. O-O {[%emt 0:00:51]} Bd7 {[%emt 0:00:42]} 7. d4 {[%emt 0:03:46]} Ng6 {[%emt 0:00:08]} 8. Nbd2 {[%emt 0:01:02]} Be7 {[%emt 0:00:30]} 9. Re1 {[%emt 0:01:26]} Nh4 {[%emt 0:09:39]} 10. Bxc6 {[%emt 0:09:50]} Nxf3+ {[%emt 0:01:51]} 11. Qxf3 {[%emt 0:00:18]} Bxc6 {[%emt 0:00:21]} 12. dxe5 {[%emt 0:02:30]} dxe5 {[%emt 0:00:27]} 13. Nc4 {[%emt 0:00:14]} f6 {[%emt 0:06:15]} 14. Rd1 {[%emt 0:02:59]} Qc8 {[%emt 0:01:14]} 15. Ne3 {[%emt 0:00:35]} Qe6 {[%emt 0:02:21]} 16. Nf5 {[%emt 0:01:35]} Bf8 {[%emt 0:05:50]} 17. Ne3 {[%emt 0:12:58]} Bd6 {[%emt 0:07:23]} 18. Nd5 {[%emt 0:06:56]} O-O {[%emt 0:01:55]} 19. Be3 {[%emt 0:02:05]} Rf7 {[%emt 0:12:11]} 20. c4 {[%emt 0:02:06]} Bf8 {[%emt 0:08:23]} 21. Rd2 {[%emt 0:01:44]} Be8 {[%emt 0:02:41]} 22. Rad1 {[%emt 0:01:32]} Rd7 {[%emt 0:08:22]} 23. h3 {[%emt 0:00:27]} b5 {[%emt 0:01:13]} 24. c5 {[%emt 0:01:50]} c6 {[%emt 0:03:27]} 25. Nb6 {[%emt 0:00:22]} Rxd2 {[%emt 0:00:07]} 26. Rxd2 {[%emt 0:00:06]} Rb8 {[%emt 0:00:22]} 27. b3 {[%emt 0:02:12]} Be7 {[%emt 0:03:00]} 28. Qd1 {[%emt 0:01:04]} g6 {[%emt 0:03:00]} 29. f3 {[%emt 0:01:40]} f5 {[%emt 0:00:09]} 30. exf5 {[%emt 0:09:14]} gxf5 {[%emt 0:00:27]} 31. b4 {[%emt 0:02:01]} f4 {[%emt 0:06:04]} 32. Bf2 {[%emt 0:01:06]} Qf5 {[%emt 0:00:33]} 33. Kh2 {[%emt 0:06:30]} Qe6 {[%emt 0:01:51]} 34. a4 {[%emt 0:01:19]} Bh5 {[%emt 0:06:25]} 35. axb5 {[%emt 0:01:52]} axb5 {[%emt 0:00:12]} 36. Qe1 {[%emt 0:01:35]} Bg6 {[%emt 0:03:34]} 37. Bh4 {[%emt 0:01:34]} Bf8 {[%emt 0:04:50]} 38. Nd7 {[%emt 0:03:02]} Rc8 {[%emt 0:01:40]} 39. Qxe5 {[%emt 0:05:13]} Qxe5 {[%emt 0:00:48]} 40. Nxe5 {[%emt 0:00:08]} Bg7 {[%emt 0:00:11]} 41. Nxg6 {[%emt 0:31:13]} hxg6 {[%emt 0:02:20]} 42. Re2 {[%emt 0:00:00]} Bc3 {[%emt 0:04:15]} 43. Be1 {[%emt 0:00:00]} Bf6 {[%emt 0:00:49]} 44. h4 {[%emt 0:00:00]} g5 {[%emt 0:00:48]} 45. Kh3 {[%emt 0:00:00]} Kf7 {[%emt 0:00:11]} 46. hxg5 {[%emt 0:00:00]} Bxg5 {[%emt 0:00:03]} 47. Kg4 {[%emt 0:00:00]} Rg8 {[%emt 0:00:41]} 48. Kf5 {[%emt 0:00:00]} Bh6 {[%emt 0:00:38]} 49. Bh4 {[%emt 0:00:00]} 1-0

[Event "Serbian League 2024"]
[Site "Bajina Basta"]
[Date "2024.10.01"]
[Round "5.12"]
[White "Miljkovic, Miroslav D"]
[Black "Kecskemeti, Arpad"]
[Result "1-0"]
[Annotator "RC"]
[ECO "E60"]
[WhiteElo "2420"]
[BlackElo "2236"]
[PlyCount "73"]
[EventDate "2024.09.26"]
[EventType "team-tourn"]
[EventCountry "SRB"]
[SourceTitle "playchess.com"]
[Source "ChessBase"]
[SourceQuality "1"]
[TimeControl "40/5400+30:1800+30"]

1. Nf3 Nf6 2. c4 g6 3. b3 c5 {[%emt 0:01:30]} 4. Bb2 {[%emt 0:02:00]} Bg7 {[%emt 0:04:08]} 5. g3 {[%emt 0:00:00]} O-O {[%emt 0:02:20]} 6. Bg2 {[%emt 0:00:00]} Nc6 {[%emt 0:01:54]} 7. O-O {[%emt 0:00:01]} d6 {[%emt 0:00:58]} 8. d4 {[%emt 0:00:45]} cxd4 {[%emt 0:00:42]} 9. Nxd4 {[%emt 0:00:07]} Bd7 {[%emt 0:02:42]} 10. Nc2 {[%emt 0:01:31]} Qc8 {[%emt 0:09:11]} 11. Re1 {[%emt 0:00:42]} Rb8 {[%emt 0:01:43]} 12. Nc3 {[%emt 0:00:45]} a6 {[%emt 0:01:39]} 13. Ne3 {[%emt 0:08:08]} b5 {[%emt 0:06:34]} 14. Rc1 {[%emt 0:04:40]} b4 {[%emt 0:09:57]} 15. Na4 {[%emt 0:27:26]} Na5 {[%emt 0:21:14]} 16. Nd5 {[%emt 0:16:12]} Nxd5 {[%emt 0:13:28]} 17. cxd5 {[%emt 0:00:07]} Qb7 {[%emt 0:01:03]} 18. Bxg7 {[%emt 0:00:14]} Kxg7 {[%emt 0:02:22]} 19. Qd4+ {[%emt 0:00:12]} f6 {[%emt 0:05:50]} 20. Nb2 {[%emt 0:00:31]} Qb6 {[%emt 0:03:38]} 21. Qxb6 {[%emt 0:05:46]} Rxb6 {[%emt 0:00:05]} 22. Rc7 {[%emt 0:00:06]} Rd8 {[%emt 0:03:10]} 23. Rec1 {[%emt 0:01:45]} Nb7 {[%emt 0:01:53]} 24. R1c6 {[%emt 0:21:35]} Bxc6 {[%emt 0:03:48]} 25. dxc6 {[%emt 0:00:08]} Na5 {[%emt 0:01:36]} 26. Rxe7+ {[%emt 0:00:17]} Kf8 {[%emt 0:00:20]} 27. Rxh7 {[%emt 0:00:45]} Rxc6 {[%emt 0:01:03]} 28. Bxc6 {[%emt 0:00:32]} Nxc6 {[%emt 0:00:03]} 29. Nd3 {[%emt 0:01:36]} a5 {[%emt 0:01:02]} 30. Nf4 {[%emt 0:00:42]} Kg8 {[%emt 0:00:29]} 31. Rc7 {[%emt 0:00:22]} Nd4 {[%emt 0:01:05]} 32. Nxg6 {[%emt 0:03:01]} Nxe2+ {[%emt 0:00:06]} 33. Kf1 {[%emt 0:00:12]} Nc3 {[%emt 0:00:05]} 34. h4 {[%emt 0:00:26]} Rb8 {[%emt 0:01:17]} 35. h5 {[%emt 0:00:37]} Rb5 {[%emt 0:00:02]} 36. h6 {[%emt 0:00:20]} Rh5 {[%emt 0:00:27]} 37. Rg7# {[%emt 0:00:07]} 1-0

[Event "Serbian League 2024"]
[Site "Bajina Basta"]
[Date "2024.10.01"]
[Round "5.13"]
[White "Benkovic, Petar"]
[Black "Adhiban, B.."]
[Result "1/2-1/2"]
[Annotator "TA"]
[ECO "A34"]
[WhiteElo "2362"]
[BlackElo "2537"]
[PlyCount "52"]
[EventDate "2024.09.26"]
[EventType "team-tourn"]
[EventCountry "SRB"]
[SourceTitle "playchess.com"]
[Source "ChessBase"]
[SourceQuality "1"]
[TimeControl "40/5400+30:1800+30"]

{[%evp 9,52,39,72,66,71,85,96,97,84,69,94,83,76,62,73,59,84,58,62,49,66,62,71,31,33,25,31,32,37,31,45,45,42,35,71,68,84,82,95,67,81,83,185,73,79]} 1. Nf3 {[%emt 0:00:08]} b6 {[%emt 0:00:14]} 2. c4 {[%emt 0:04:24]} Bb7 {[%emt 0:00:24]} 3. Nc3 {[%emt 0:00:16]} c5 {[%emt 0:12:39]} 4. e3 {[%emt 0:09:56][%cal Be2e3,Be3e4][%mdl 32]} g6 {[%emt 0:13:23]} 5. d4 {[%emt 0:07:27]} Bg7 {[%emt 0:00:07]} 6. d5 {[%emt 0:01:22]} Bxc3+ {[%emt 0:02:11]} 7. bxc3 {[%emt 0:00:03]} d6 {[%emt 0:01:24]} 8. e4 {[%emt 0:00:51]} Nd7 {[%emt 0:00:41]} 9. Be3 {[%emt 0:14:38]} Qc7 {[%emt 0:00:37]} 10. a4 {[%emt 0:00:22]} a5 {[%emt 0:00:03]} 11. Nd2 {[%emt 0:00:59]} O-O-O {[%emt 0:00:52]} 12. Be2 {[%emt 0:02:34]} Ngf6 {[%emt 0:08:28]} 13. Qc2 {[%emt 0:09:51]} h6 {[%emt 0:01:00]} 14. O-O-O {[%emt 0:08:33]} g5 {[%emt 0:04:10]} 15. h4 {[%emt 0:01:24]} Rhg8 {[%emt 0:00:18]} 16. hxg5 {[%emt 0:02:34]} hxg5 {[%emt 0:00:50]} 17. Rh6 {[%emt 0:01:09]} Ne5 {[%emt 0:00:39]} 18. f3 $1 {[%emt 0:02:46][%cal Bf2f3,Bf3f4][%mdl 32] Es drohte Nfg4} Ba6 {[%emt 0:00:31]} 19. Rdh1 {[%emt 0:00:35]} Kb7 {[%emt 0:00:37]} 20. Kb2 {[%emt 0:02:01]} Ka7 {[%emt 0:00:39]} 21. Kb3 {[%emt 0:02:09]} Ned7 {[%emt 0:05:59]} 22. Nf1 {[%emt 0:08:26]} g4 {[%emt 0:01:54]} 23. f4 {[%emt 0:02:06]} e6 {[%emt 0:10:19]} 24. Ng3 {[%emt 0:01:00]} Rge8 {[%emt 0:05:18] Droht ...exd5 und aus.} 25. Bf2 {[%emt 0:03:33] Weiß steht aktiver.} Re7 {[%emt 0:12:47] [#]} (25... Rc8 $16) 26. Ka3 {[%emt 0:01:41]} (26. Nh5 $1 $18 {[%cal Rh5f6] ist der präzise Gewinnweg.} Nxh5 27. R1xh5 (27. R6xh5 Rde8 $11)) 26... Rde8 {[%emt 0:07:19] Gewichteter Fehlerwert: Weiß=0.17 (sehr präzise) /Schwarz=0.19 (sehr präzise) .  Fehler:       	Weiß=1     	Schwarz=1     Ungenau:       	Weiß=2     	Schwarz=1     OK:         	Weiß=7     	Schwarz=3     Stark:        	Weiß=1     	---} 1/2-1/2

[Event "Serbian League 2024"]
[Site "Bajina Basta"]
[Date "2024.10.01"]
[Round "5.14"]
[White "Can, Emre"]
[Black "Eren, Ataberk"]
[Result "1/2-1/2"]
[Annotator "TA"]
[ECO "C11"]
[WhiteElo "2547"]
[BlackElo "2386"]
[PlyCount "131"]
[EventDate "2024.09.26"]
[EventType "team-tourn"]
[EventCountry "SRB"]
[SourceTitle "playchess.com"]
[Source "ChessBase"]
[SourceQuality "1"]
[TimeControl "40/5400+30:1800+30"]

{[%evp 52,131,-35,-35,-35,-35,-35,-32,-30,-50,-20,-27,-14,-22,-17,-17,-22,-29,0,0,0,0,0,0,0,0,0,-129,-101,-112,9,12,31,12,13,17,20,8,104,15,37,37,51,51,51,50,41,53,53,54,65,69,88,85,93,97,139,73,73,73,73,75,80,80,80,80,93,68,69,68,70,64,83,52,65,0,67,25,66,36,43,0]} 1. e4 {[%emt 0:03:18]} e6 {[%emt 0:00:14]} 2. d4 {[%emt 0:00:11]} d5 {[%emt 0:00:07]} 3. Nc3 {[%emt 0:00:09]} Nf6 {[%emt 0:00:13]} 4. e5 {[%emt 0:00:18]} Nfd7 {[%emt 0:00:08]} 5. f4 {[%emt 0:00:13]} c5 {[%emt 0:00:11]} 6. Nf3 {[%emt 0:00:14]} Nc6 {[%emt 0:00:08]} 7. Be3 {[%emt 0:00:16]} Be7 {[%emt 0:08:50]} 8. Qd2 {[%emt 0:00:26]} O-O {[%emt 0:05:36]} 9. dxc5 {[%emt 0:01:02]} Qa5 {[%emt 0:00:10]} 10. a3 {[%emt 0:01:16]} a6 {[%emt 0:00:08]} 11. Qd1 {[%emt 0:02:37]} f6 {[%emt 0:01:33]} 12. exf6 {[%emt 0:00:16]} Bxf6 {[%emt 0:02:15]} 13. Qd2 {[%emt 0:00:25]} Nxc5 {[%emt 0:06:10]} 14. O-O-O {[%emt 0:00:32]} Bxc3 {[%emt 0:13:05]} 15. Qxc3 {[%emt 0:00:15]} Qxc3 {[%emt 0:00:14]} 16. bxc3 {[%emt 0:00:07]} Ne4 {[%emt 0:00:23]} 17. c4 {[%emt 0:00:08]} b5 {[%emt 0:00:30]} 18. cxd5 {[%emt 0:00:19]} exd5 {[%emt 0:00:25]} 19. Rxd5 {[%emt 0:00:15]} Be6 {[%emt 0:00:42]} 20. Rd1 {[%emt 0:00:19]} Rac8 {[%emt 0:03:32]} 21. g3 {[%emt 0:35:45]} Bg4 {[%emt 0:06:51]} 22. Bg2 {[%emt 0:01:50]} b4 {[%emt 0:02:27]} 23. Rd3 {[%emt 0:03:54]} bxa3 {[%emt 0:07:56]} 24. Rxa3 {[%emt 0:00:34]} Nb4 {[%emt 0:03:28]} 25. Nd4 {[%emt 0:00:36]} Nc3 {[%emt 0:00:58]} 26. Bd2 {[%emt 0:18:16]} Ne2+ {[%emt 0:11:23]} 27. Kb1 $1 {[%emt 0:00:09]} (27. Nxe2 $2 Rxc2+ 28. Kb1 (28. Kd1 $2 Rd8 $19) 28... Rxd2 $19) 27... Nxd4 {[%emt 0:00:15]} 28. Bxb4 {[%emt 0:00:07]} Rfd8 {[%emt 0:01:52]} 29. c3 {[%emt 0:15:49]} (29. Rxa6 Rxc2 (29... Nxc2 30. Ba5 $11) 30. Be4 Re2 $17) 29... Bf5+ $1 {[%emt 0:02:00]} 30. Kc1 {[%emt 0:00:08]} Nb5 {[%emt 0:18:03]} (30... Nc2 31. Bh3 Be4 (31... Nxa3 32. Bxf5 Rc6 33. Bxa3 $16) 32. Be6+ (32. Rxa6 $2 Nxb4 33. Bxc8 Nd3+ 34. Kc2 Nxf4+ 35. Kb3 Bxh1 $19) 32... Kh8 33. Bxc8 (33. Rxa6 $2 Nxb4 34. Bxc8 Nxa6 $19) 33... Rxc8 (33... Bxh1 $2 34. Kxc2 Be4+ 35. Kb2 $18) 34. Rd1 Nxb4 35. Kd2 $11) (30... Ne2+ $5 31. Kb2 Nxg3 (31... Rd2+ 32. Ka1 $17) 32. hxg3 Rd2+ 33. Ka1 Rxg2 34. Rxa6 Rxg3 $17) 31. Ra5 {[%emt 0:00:15]} Nxc3 {[%emt 0:00:43]} 32. Rxf5 {[%emt 0:00:07]} Na2+ {[%emt 0:00:19]} 33. Kb2 {[%emt 0:01:01]} Nxb4 {[%emt 0:00:05]} 34. Kb3 {[%emt 0:00:16]} Rb8 {[%emt 0:01:23]} 35. Kc4 {[%emt 0:04:29]} Nc2 {[%emt 0:04:04]} 36. Bd5+ {[%emt 0:00:41]} Kh8 {[%emt 0:00:03]} 37. Kd3 {[%emt 0:01:23]} Rbc8 {[%emt 0:01:16]} 38. Rb1 {[%emt 0:04:43]} a5 {[%emt 0:00:37]} 39. Rb2 {[%emt 0:01:30]} (39. Re5 $11) 39... Nb4+ {[%emt 0:00:35]} 40. Ke4 {[%emt 0:00:35]} Rc3 {[%emt 0:01:02]} ({Of course not} 40... Nxd5 $6 41. Rxd5 Rxd5 42. Kxd5 $11) (40... g6 $1 $17 {[%cal Rg6f5]} 41. Rg5 Rc3 (41... Nxd5 42. Rxd5 Rxd5 43. Kxd5 $11) (41... h6 42. Re5 $15)) 41. Bf7 $11 {[%emt 0:13:40]} Ra3 {[%emt 0:13:43]} 42. Rb5 {[%emt 0:04:55]} g6 {[%emt 0:00:55]} 43. Rb3 {[%emt 0:04:33]} Ra1 {[%emt 0:04:02]} 44. Rc3 {[%emt 0:00:12]} Kg7 {[%emt 0:02:30] [#]} (44... Rd7 $11 {remains equal.} 45. Bc4 Rc7) 45. Rb7 {[%emt 0:03:57]} (45. Rc7 $1 $16 Rad1 46. Bc4+ (46. Rxa5 R1d4+ 47. Kf3 Rd3+ 48. Kg4 R3d7 $14) 46... R1d7 47. Rxd7+ Rxd7 48. Rxa5) 45... Rad1 {[%emt 0:05:18]} 46. Bb3+ {[%emt 0:04:02]} (46. Rcc7 $5 Na6 $8 47. Rc6 $11) 46... R1d7 {[%emt 0:00:05]} 47. Rcc7 {[%emt 0:00:14]} Re8+ {[%emt 0:01:47]} 48. Kf3 {[%emt 0:00:08]} Rxc7 {[%emt 0:00:04]} 49. Rxc7+ {[%emt 0:00:04]} Kh8 $1 {[%emt 0:00:09]} 50. Kg4 {[%emt 0:01:10]} Re3 {[%emt 0:03:06]} 51. Bc4 {[%emt 0:02:36]} h6 {[%emt 0:00:21]} 52. Ra7 {[%emt 0:00:52]} Rc3 {[%emt 0:00:30]} 53. Bf7 {[%emt 0:00:42]} Nc6 {[%emt 0:02:07] [#]} 54. Ra6 {[%emt 0:00:06]} ({Not} 54. Rc7 $2 Ne5+ 55. fxe5 Rxc7 56. Bxg6 a4 $19) (54. Rb7 $142 $1 Nd8 55. Rb8) 54... Kg7 $16 {[%emt 0:00:29]} 55. Be8 {[%emt 0:00:32]} Ne7 {[%emt 0:01:02]} 56. Rxa5 {[%emt 0:00:07]} Rc8 {[%emt 0:01:27]} 57. Ba4 {[%emt 0:00:22]} Rc7 {[%emt 0:00:23]} 58. Re5 {[%emt 0:00:26]} Ng8 {[%emt 0:00:18]} 59. Re3 {[%emt 0:00:27]} Nf6+ {[%emt 0:00:19]} 60. Kf3 {[%emt 0:00:07]} g5 {[%emt 0:01:10]} 61. Bb3 {[%emt 0:01:14]} gxf4 {[%emt 0:00:32]} 62. gxf4 {[%emt 0:00:17]} Kg6 {[%emt 0:00:14]} 63. Rd3 {[%emt 0:00:14]} (63. Ba4 $14) 63... Kg7 {[%emt 0:00:23]} (63... Kf5 $1 $11) 64. h3 {[%emt 0:00:22]} Kg6 {[%emt 0:00:08]} 65. Be6 {[%emt 0:00:15]} Rc1 {[%emt 0:00:29]} 66. Bg4 {[%emt 0:04:17]} 1/2-1/2